fUSD/lending_fUSD_20260621
["ID","MTS","AMOUNT","RATE_DAILY","PERIOD"]
[425910039,1782034152000,-567.27946047,0.00010339,2]
[425910037,1782034152000,-567.27946047,0.00010339,2]
[425910038,1782034152000,-567.27946047,0.00010339,2]
[425910036,1782034152000,-567.27946047,0.00010339,2]
[425910035,1782034152000,-567.27946047,0.00010339,2]
[425910034,1782034152000,-567.27946047,0.00010339,2]
[425910033,1782034152000,-567.27946047,0.00010339,2]
[425910029,1782034152000,-567.27946047,0.00010339,2]
[425910032,1782034152000,-567.27946047,0.00010339,2]
[425910031,1782034152000,-567.27946047,0.00010339,2]
[425910028,1782034152000,-567.27946047,0.00010339,2]
[425910027,1782034152000,-567.27946047,0.00010339,2]
[425910026,1782034152000,-567.27946047,0.00010339,2]
[425910040,1782034152000,-567.27946047,0.00010339,2]
[425910030,1782034152000,-567.27946047,0.00010339,2]
[425910041,1782034152000,-567.27946047,0.00010339,2]
[425910042,1782034152000,-567.27946047,0.00010339,2]
[425910056,1782034152000,-1525.35511997,0.00010339,2]
[425910043,1782034152000,-567.27946047,0.00010339,2]
[425910060,1782034152000,-1525.35511997,0.00010339,2]
[425910058,1782034152000,-1525.35511997,0.00010339,2]
[425910057,1782034152000,-1525.35511997,0.00010339,2]
[425910055,1782034152000,-1525.35511997,0.00010339,2]
[425910054,1782034152000,-1525.35511997,0.00010339,2]
[425910053,1782034152000,-1525.35511997,0.00010339,2]
[425910052,1782034152000,-1525.35511997,0.00010339,2]
[425910049,1782034152000,-567.27946047,0.00010339,2]
[425910050,1782034152000,-567.27946047,0.00010339,2]
[425910048,1782034152000,-567.27946047,0.00010339,2]
[425910047,1782034152000,-567.27946047,0.00010339,2]
[425910045,1782034152000,-567.27946047,0.00010339,2]
[425910046,1782034152000,-567.27946047,0.00010339,2]
[425910044,1782034152000,-567.27946047,0.00010339,2]
[425910051,1782034152000,-567.27946047,0.00010339,2]
[425910059,1782034152000,-1525.35511997,0.00010339,2]
[425910075,1782034153000,-1525.35511997,0.00010339,2]
[425910071,1782034153000,-1525.35511997,0.00010339,2]
[425910073,1782034153000,-1525.35511997,0.00010339,2]
[425910078,1782034153000,-1525.35511997,0.00010339,2]
[425910076,1782034153000,-1525.35511997,0.00010339,2]
[425910077,1782034153000,-1525.35511997,0.00010339,2]
[425910072,1782034153000,-1525.35511997,0.00010339,2]
[425910074,1782034153000,-1525.35511997,0.00010339,2]
[425910070,1782034153000,-1525.35511997,0.00010339,2]
[425910063,1782034153000,-1525.35511997,0.00010339,2]
[425910066,1782034153000,-1525.35511997,0.00010339,2]
[425910068,1782034153000,-1525.35511997,0.00010339,2]
[425910067,1782034153000,-1525.35511997,0.00010339,2]
[425910065,1782034153000,-1525.35511997,0.00010339,2]
[425910064,1782034153000,-1525.35511997,0.00010339,2]
[425910062,1782034153000,-1525.35511997,0.00010339,2]
[425910061,1782034153000,-1525.35511997,0.00010339,2]
[425910069,1782034153000,-1525.35511997,0.00010339,2]
[425910079,1782034153000,-1525.35511997,0.00010339,2]
[425910094,1782034153000,-217.39269879,0.00010445,2]
[425910081,1782034153000,-1525.35511995,0.00010339,2]
[425910098,1782034153000,-2000.0,0.00010585,2]
[425910100,1782034153000,-4000.0,0.00011375,2]
[425910097,1782034153000,-150.0,0.00010548,2]
[425910095,1782034153000,-500.0,0.00010448,2]
[425910096,1782034153000,-160.0,0.0001047,2]
[425910092,1782034153000,-217.39269879,0.00010445,2]
[425910093,1782034153000,-217.39269879,0.00010445,2]
[425910091,1782034153000,-150.0,0.00010444,2]
[425910089,1782034153000,-250.0,0.00010349,2]
[425910090,1782034153000,-500.0,0.00010382,2]
[425910088,1782034153000,-160.0,0.00010344,2]
[425910085,1782034153000,-199.02999239,0.0001034,2]
[425910087,1782034153000,-500.0,0.00010342,2]
[425910086,1782034153000,-250.0,0.00010341,2]
[425910084,1782034153000,-160.0,0.0001034,2]
[425910083,1782034153000,-216.32317309,0.00010339,2]
[425910082,1782034153000,-1525.35511995,0.00010339,2]
[425910099,1782034153000,-250.0,0.00011374,2]
[425910080,1782034153000,-1525.35511997,0.00010339,2]
[425910101,1782034154000,-500.0,0.00011375,2]
[425910102,1782034154000,-300.0,0.00011375,2]
[425910103,1782034167000,684.6509141,0.00010239,2]
[425910130,1782034231000,-250.0,0.00014,2]
[425910129,1782034231000,-4682.9,0.00013699,2]
[425910128,1782034231000,-4629.7564,0.00013598,2]
[425910127,1782034231000,-250.0,0.00013419,2]
[425910125,1782034231000,-250.0,0.00012899,2]
[425910126,1782034231000,-182.11627329,0.00012899,2]
[425910124,1782034231000,-151.0,0.00012898,2]
[425910123,1782034231000,-153.0,0.00012898,2]
[425910122,1782034231000,-151.0,0.00012898,2]
[425910119,1782034231000,-588.30607647,0.0001046,2]
[425910120,1782034231000,-62620.82025864,0.0001046,2]
[425910118,1782034231000,-544.02,0.0001046,2]
[425910117,1782034231000,-1663.6855344,0.0001046,2]
[425910116,1782034231000,-315.42809693,0.0001046,2]
[425910114,1782034231000,-985.83311175,0.0001046,2]
[425910111,1782034231000,-17347.87127481,0.0001046,2]
[425910132,1782034231000,-600.0,0.00014188,2]
[425910121,1782034231000,-174.6924576,0.00012898,2]
[425910131,1782034231000,-600.0,0.00014188,2]
[425910147,1782034231000,-351.02307539,0.00019239,2]
[425910135,1782034231000,-302.22814681,0.00014188,2]
[425910133,1782034231000,-600.0,0.00014188,2]
[425910150,1782034231000,-283.75471824,0.00019239,2]
[425910148,1782034231000,-491.0360497,0.00019239,2]
[425910152,1782034231000,-357.37428229,0.00019525,2]
[425910149,1782034231000,-314.16688825,0.00019239,2]
[425910153,1782034231000,-1216.68230655,0.00019525,2]
[425910154,1782034231000,-984.68337832,0.00019525,2]
[425910144,1782034231000,-166.66,0.00019192,2]
[425910145,1782034231000,-5388.65746842,0.00019239,2]
[425910151,1782034231000,-74.12679358,0.00019525,2]
[425910138,1782034231000,-73083.60822055,0.00014993,2]
[425910139,1782034231000,-10982.35613245,0.00014993,2]
[425910136,1782034231000,-300.0,0.00014188,2]
[425910134,1782034231000,-600.0,0.00014188,2]
[425910140,1782034231000,-300.0,0.00016,2]
[425910143,1782034231000,-166.66,0.00018797,2]
[425910142,1782034231000,-251.02,0.00018059,2]
[425910137,1782034231000,-250.0,0.00014188,2]
[425910141,1782034231000,-587.6,0.00016883,2]
[425910156,1782034232000,-536.12994996,0.00019525,2]
[425910157,1782034232000,-1292.2457146,0.00019525,2]
[425910158,1782034232000,-346.47208398,0.00019525,2]
[425910155,1782034232000,-413.96893256,0.00019525,2]
[425910170,1782034237000,-72504.9518471,0.00019525,2]
[425910166,1782034237000,-1068.29010092,0.00019525,2]
[425910167,1782034237000,-516.70824417,0.00019525,2]
[425910168,1782034237000,-545.85460464,0.00019525,2]
[425910169,1782034237000,-4208.47611433,0.00019525,2]
[425910171,1782034237000,-166.66,0.00019588,2]
[425910173,1782034237000,-151.0,0.00019721,2]
[425910174,1782034237000,-151.0,0.00019721,2]
[425910172,1782034237000,-234.9,0.00019606,2]
[425910175,1782034237000,-151.0,0.00019721,2]
[425910176,1782034237000,-151.0,0.00019721,2]
[425910177,1782034237000,-151.0,0.00019721,2]
[425910178,1782034237000,-151.0,0.00019721,2]
[425910205,1782034238000,-250.0,0.00021918,2]
[425910209,1782034238000,-250.0,0.00021918,2]
[425910207,1782034238000,-250.0,0.00021918,2]
[425910210,1782034238000,-250.0,0.00021918,2]
[425910212,1782034238000,-250.0,0.00021918,2]
[425910211,1782034238000,-250.0,0.00021918,2]
[425910213,1782034238000,-250.0,0.00021918,2]
[425910208,1782034238000,-250.0,0.00021918,2]
[425910214,1782034238000,-288.0,0.00021918,8]
[425910215,1782034238000,-288.0,0.00021918,8]
[425910231,1782034238000,-688.0,0.00021918,8]
[425910228,1782034238000,-688.0,0.00021918,8]
[425910204,1782034238000,-250.0,0.00021918,2]
[425910230,1782034238000,-688.0,0.00021918,8]
[425910221,1782034238000,-288.0,0.00021918,8]
[425910225,1782034238000,-688.0,0.00021918,8]
[425910219,1782034238000,-288.0,0.00021918,8]
[425910223,1782034238000,-688.0,0.00021918,8]
[425910216,1782034238000,-288.0,0.00021918,8]
[425910232,1782034238000,-688.0,0.00021918,8]
[425910233,1782034238000,-688.0,0.00021918,8]
[425910217,1782034238000,-288.0,0.00021918,8]
[425910206,1782034238000,-250.0,0.00021918,2]
[425910191,1782034238000,-290.0,0.0002,2]
[425910201,1782034238000,-1375.004953,0.00021333,2]
[425910179,1782034238000,-151.0,0.00019721,2]
[425910182,1782034238000,-151.0,0.00019721,2]
[425910180,1782034238000,-151.0,0.00019721,2]
[425910181,1782034238000,-151.0,0.00019721,2]
[425910183,1782034238000,-151.0,0.00019721,2]
[425910184,1782034238000,-151.0,0.00019721,2]
[425910190,1782034238000,-170.0,0.0002,2]
[425910234,1782034238000,-310.0,0.00021918,8]
[425910185,1782034238000,-159.59,0.00019726,2]
[425910186,1782034238000,-166.66,0.00019984,2]
[425910187,1782034238000,-200.0,0.00019994,2]
[425910189,1782034238000,-1375.004953,0.0002,2]
[425910188,1782034238000,-354.0,0.0002,2]
[425910192,1782034238000,-4624.68,0.00020145,2]
[425910194,1782034238000,-150.0,0.00020352,2]
[425910193,1782034238000,-3058.58,0.00020321,2]
[425910195,1782034238000,-166.66,0.0002038,2]
[425910198,1782034238000,-166.66,0.00020775,2]
[425910197,1782034238000,-500.0,0.0002074,2]
[425910196,1782034238000,-200.0,0.00020452,2]
[425910199,1782034238000,-354.0,0.00021,2]
[425910200,1782034238000,-290.0,0.00021,2]
[425910202,1782034238000,-163.48,0.00021488,2]
[425910203,1782034238000,-5000.0,0.00021918,2]
[425910237,1782034238000,-234.9,0.00022057,2]
[425910218,1782034238000,-288.0,0.00021918,8]
[425910239,1782034238000,-2253.50378541,0.00022407,2]
[425910266,1782034238000,-150.0,0.00024333,2]
[425910265,1782034238000,-6081.0,0.00024247,2]
[425910268,1782034238000,-1000.0,0.00024658,2]
[425910267,1782034238000,-234.9,0.00024507,2]
[425910269,1782034238000,-171.39,0.00024658,2]
[425910270,1782034238000,-236.35,0.00024658,2]
[425910274,1782034238000,-304.0,0.00025,2]
[425910271,1782034238000,-904.44,0.00024834,7]
[425910275,1782034238000,-7242.38,0.00025786,2]
[425910278,1782034238000,-897.77,0.00026445,7]
[425910272,1782034238000,-2288.0,0.000249,5]
[425910276,1782034238000,-1146.4,0.00025786,2]
[425910273,1782034238000,-367.0,0.00025,2]
[425910280,1782034238000,-511.0,0.00027137,2]
[425910279,1782034238000,-234.9,0.00026958,2]
[425910282,1782034238000,-511.0,0.00027137,2]
[425910281,1782034238000,-511.00003,0.00027137,2]
[425910283,1782034238000,-2500.0,0.00027147,2]
[425910284,1782034238000,-3647.0,0.00027247,2]
[425910285,1782034238000,-6081.0,0.00027247,2]
[425910286,1782034238000,-500.0,0.0002729,2]
[425910287,1782034238000,-17224.11,0.0002729,2]
[425910236,1782034238000,-290.0,0.00022,2]
[425910263,1782034238000,-518.45,0.00024174,2]
[425910264,1782034238000,-3647.0,0.00024247,2]
[425910277,1782034238000,-518.45,0.00025786,2]
[425910261,1782034238000,-7242.38,0.00024174,2]
[425910241,1782034238000,-1375.004953,0.00022667,2]
[425910262,1782034238000,-1146.4,0.00024174,2]
[425910240,1782034238000,-2253.50378541,0.00022407,2]
[425910235,1782034238000,-354.0,0.00022,2]
[425910238,1782034238000,-2253.50378542,0.00022407,2]
[425910242,1782034238000,-155.48525485,0.00022752,2]
[425910243,1782034238000,-209.40437684,0.00022752,2]
[425910245,1782034238000,-156.84738482,0.00022752,2]
[425910246,1782034238000,-156.89976954,0.00022752,2]
[425910249,1782034238000,-209.40437684,0.00022752,2]
[425910247,1782034238000,-500.0,0.00022752,2]
[425910248,1782034238000,-151.0,0.00022752,2]
[425910244,1782034238000,-163.7612667,0.00022752,2]
[425910253,1782034238000,-290.0,0.00023,2]
[425910260,1782034238000,-84065.964353,0.00024058,2]
[425910259,1782034238000,-290.0,0.00024,2]
[425910256,1782034238000,-5743.57634005,0.00023848,2]
[425910257,1782034238000,-354.0,0.00024,2]
[425910254,1782034238000,-921.69,0.00023223,7]
[425910258,1782034238000,-1375.004953,0.00024,2]
[425910251,1782034238000,-9211.34798984,0.00022752,2]
[425910250,1782034238000,-160.29753271,0.00022752,2]
[425910255,1782034238000,-9552.16786547,0.000233,2]
[425910252,1782034238000,-354.0,0.00023,2]
[425910329,1782034239000,-500.0,0.00027397,2]
[425910321,1782034239000,-500.0,0.00027396,2]
[425910318,1782034239000,-500.0,0.00027396,2]
[425910319,1782034239000,-500.0,0.00027396,2]
[425910325,1782034239000,-500.0,0.00027396,2]
[425910327,1782034239000,-502.63850258,0.00027396,2]
[425910324,1782034239000,-500.0,0.00027396,2]
[425910323,1782034239000,-500.0,0.00027396,2]
[425910326,1782034239000,-500.0,0.00027396,2]
[425910322,1782034239000,-500.0,0.00027396,2]
[425910343,1782034239000,-500.0,0.00027397,2]
[425910330,1782034239000,-500.0,0.00027397,2]
[425910342,1782034239000,-500.0,0.00027397,2]
[425910334,1782034239000,-500.0,0.00027397,2]
[425910331,1782034239000,-500.0,0.00027397,2]
[425910336,1782034239000,-501.82455083,0.00027397,2]
[425910339,1782034239000,-500.0,0.00027397,2]
[425910335,1782034239000,-500.0,0.00027397,2]
[425910333,1782034239000,-500.0,0.00027397,2]
[425910337,1782034239000,-191.82869199,0.00027397,2]
[425910338,1782034239000,-512.36221293,0.00027397,2]
[425910341,1782034239000,-500.0,0.00027397,2]
[425910340,1782034239000,-500.0,0.00027397,2]
[425910345,1782034239000,-500.0,0.00027397,2]
[425910320,1782034239000,-500.0,0.00027396,2]
[425910332,1782034239000,-500.0,0.00027397,2]
[425910317,1782034239000,-500.0,0.00027396,2]
[425910289,1782034239000,-398.60601364,0.00027297,2]
[425910313,1782034239000,-500.0,0.00027396,2]
[425910290,1782034239000,-3052.51703141,0.00027297,2]
[425910291,1782034239000,-7489.47,0.00027387,2]
[425910288,1782034239000,-171.23371776,0.00027297,2]
[425910292,1782034239000,-478.65167273,0.00027387,2]
[425910293,1782034239000,-500.0,0.00027395,2]
[425910296,1782034239000,-500.0,0.00027396,2]
[425910294,1782034239000,-8000.0,0.00027396,2]
[425910295,1782034239000,-502.87240728,0.00027396,2]
[425910299,1782034239000,-1471.0035132,0.00027396,2]
[425910300,1782034239000,-1471.0035132,0.00027396,2]
[425910297,1782034239000,-500.0,0.00027396,2]
[425910303,1782034239000,-1471.00351319,0.00027396,2]
[425910316,1782034239000,-500.0,0.00027396,2]
[425910301,1782034239000,-1471.00351319,0.00027396,2]
[425910302,1782034239000,-1471.00351319,0.00027396,2]
[425910304,1782034239000,-1471.00351319,0.00027396,2]
[425910305,1782034239000,-1471.00351319,0.00027396,2]
[425910306,1782034239000,-1471.00351319,0.00027396,2]
[425910307,1782034239000,-1471.00351319,0.00027396,2]
[425910309,1782034239000,-1471.00351319,0.00027396,2]
[425910311,1782034239000,-1471.00351319,0.00027396,2]
[425910308,1782034239000,-1471.00351319,0.00027396,2]
[425910310,1782034239000,-1471.00351319,0.00027396,2]
[425910312,1782034239000,-1471.00351319,0.00027396,2]
[425910314,1782034239000,-500.0,0.00027396,2]
[425910315,1782034239000,-500.0,0.00027396,2]
[425910298,1782034239000,-508.26176951,0.00027396,2]
[425910344,1782034239000,-500.0,0.00027397,2]
[425910328,1782034239000,-1052.0,0.00027397,5]
[425910347,1782034239000,-500.0,0.00027397,2]
[425910378,1782034239000,-500.0,0.00027397,2]
[425910377,1782034239000,-500.0,0.00027397,2]
[425910382,1782034239000,-500.0,0.00027397,2]
[425910384,1782034239000,-318.75116334,0.00027397,2]
[425910383,1782034239000,-500.0,0.00027397,2]
[425910381,1782034239000,-500.0,0.00027397,2]
[425910385,1782034239000,-500.0,0.00027397,2]
[425910386,1782034239000,-500.0,0.00027397,2]
[425910387,1782034239000,-500.0,0.00027397,2]
[425910388,1782034239000,-500.0,0.00027397,2]
[425910390,1782034239000,-500.0,0.00027397,2]
[425910393,1782034239000,-622.19,0.00027397,2]
[425910380,1782034239000,-500.0,0.00027397,2]
[425910391,1782034239000,-500.0,0.00027397,2]
[425910392,1782034239000,-500.0,0.00027397,2]
[425910398,1782034239000,-500.0,0.00027397,2]
[425910394,1782034239000,-500.0,0.00027397,2]
[425910397,1782034239000,-500.0,0.00027397,2]
[425910396,1782034239000,-500.0,0.00027397,2]
[425910395,1782034239000,-500.0,0.00027397,2]
[425910399,1782034239000,-500.0,0.00027397,2]
[425910401,1782034239000,-500.0,0.00027397,2]
[425910402,1782034239000,-500.0,0.00027397,2]
[425910403,1782034239000,-500.0,0.00027397,2]
[425910400,1782034239000,-228.14477535,0.00027397,2]
[425910346,1782034239000,-500.0,0.00027397,2]
[425910389,1782034239000,-500.0,0.00027397,2]
[425910379,1782034239000,-500.0,0.00027397,2]
[425910404,1782034239000,-500.0,0.00027397,2]
[425910373,1782034239000,-500.0,0.00027397,2]
[425910376,1782034239000,-500.0,0.00027397,2]
[425910351,1782034239000,-501.82455083,0.00027397,2]
[425910348,1782034239000,-500.0,0.00027397,2]
[425910350,1782034239000,-500.0,0.00027397,2]
[425910352,1782034239000,-546.87303852,0.00027397,2]
[425910354,1782034239000,-524.09,0.00027397,2]
[425910353,1782034239000,-555.81,0.00027397,2]
[425910355,1782034239000,-500.0,0.00027397,2]
[425910362,1782034239000,-500.0,0.00027397,2]
[425910357,1782034239000,-500.0,0.00027397,2]
[425910356,1782034239000,-500.0,0.00027397,2]
[425910359,1782034239000,-500.0,0.00027397,2]
[425910360,1782034239000,-500.0,0.00027397,2]
[425910349,1782034239000,-500.0,0.00027397,2]
[425910363,1782034239000,-500.0,0.00027397,2]
[425910358,1782034239000,-500.0,0.00027397,2]
[425910374,1782034239000,-500.0,0.00027397,2]
[425910372,1782034239000,-500.0,0.00027397,2]
[425910371,1782034239000,-915.88,0.00027397,2]
[425910369,1782034239000,-500.0,0.00027397,2]
[425910370,1782034239000,-500.0,0.00027397,2]
[425910367,1782034239000,-500.0,0.00027397,2]
[425910361,1782034239000,-500.0,0.00027397,2]
[425910368,1782034239000,-500.0,0.00027397,2]
[425910364,1782034239000,-500.0,0.00027397,2]
[425910375,1782034239000,-500.0,0.00027397,2]
[425910366,1782034239000,-500.0,0.00027397,2]
[425910365,1782034239000,-500.0,0.00027397,2]
[425910446,1782034240000,-500.0,0.00027397,2]
[425910430,1782034240000,-500.0,0.00027397,2]
[425910435,1782034240000,-421.34418171,0.00027397,2]
[425910439,1782034240000,-583.72,0.00027397,2]
[425910436,1782034240000,-488.28925274,0.00027397,2]
[425910438,1782034240000,-500.0,0.00027397,2]
[425910440,1782034240000,-725.19,0.00027397,2]
[425910442,1782034240000,-500.0,0.00027397,2]
[425910441,1782034240000,-500.0,0.00027397,2]
[425910431,1782034240000,-535.30150108,0.00027397,2]
[425910437,1782034240000,-500.0,0.00027397,2]
[425910448,1782034240000,-500.0,0.00027397,2]
[425910444,1782034240000,-500.0,0.00027397,2]
[425910445,1782034240000,-500.0,0.00027397,2]
[425910447,1782034240000,-500.0,0.00027397,2]
[425910449,1782034240000,-500.0,0.00027397,2]
[425910450,1782034240000,-500.0,0.00027397,2]
[425910452,1782034240000,-500.0,0.00027397,2]
[425910451,1782034240000,-500.0,0.00027397,2]
[425910454,1782034240000,-500.0,0.00027397,2]
[425910455,1782034240000,-500.0,0.00027397,2]
[425910433,1782034240000,-500.0,0.00027397,2]
[425910457,1782034240000,-500.0,0.00027397,2]
[425910443,1782034240000,-500.0,0.00027397,2]
[425910429,1782034240000,-500.0,0.00027397,2]
[425910416,1782034240000,-715.56,0.00027397,2]
[425910432,1782034240000,-500.0,0.00027397,2]
[425910458,1782034240000,-500.0,0.00027397,2]
[425910408,1782034240000,-500.0,0.00027397,2]
[425910406,1782034240000,-500.0,0.00027397,2]
[425910407,1782034240000,-500.0,0.00027397,2]
[425910405,1782034240000,-500.0,0.00027397,2]
[425910409,1782034240000,-500.0,0.00027397,2]
[425910410,1782034240000,-500.0,0.00027397,2]
[425910414,1782034240000,-500.0,0.00027397,2]
[425910412,1782034240000,-501.82455083,0.00027397,2]
[425910411,1782034240000,-500.0,0.00027397,2]
[425910413,1782034240000,-500.0,0.00027397,2]
[425910428,1782034240000,-500.0,0.00027397,2]
[425910415,1782034240000,-500.0,0.00027397,2]
[425910417,1782034240000,-500.0,0.00027397,2]
[425910419,1782034240000,-500.0,0.00027397,2]
[425910421,1782034240000,-500.0,0.00027397,2]
[425910420,1782034240000,-500.0,0.00027397,2]
[425910422,1782034240000,-500.0,0.00027397,2]
[425910434,1782034240000,-572.94,0.00027397,2]
[425910424,1782034240000,-500.0,0.00027397,2]
[425910425,1782034240000,-427.48802915,0.00027397,2]
[425910423,1782034240000,-500.0,0.00027397,2]
[425910426,1782034240000,-500.0,0.00027397,2]
[425910427,1782034240000,-500.0,0.00027397,2]
[425910418,1782034240000,-500.0,0.00027397,2]
[425910456,1782034240000,-500.0,0.00027397,2]
[425910453,1782034240000,-345.30971461,0.00027397,2]
[425910459,1782034240000,-500.0,0.00027397,2]
[425910490,1782034240000,-500.0,0.00027397,2]
[425910489,1782034240000,-500.0,0.00027397,2]
[425910491,1782034240000,-500.0,0.00027397,2]
[425910492,1782034240000,-500.0,0.00027397,2]
[425910495,1782034240000,-500.0,0.00027397,2]
[425910496,1782034240000,-500.0,0.00027397,2]
[425910493,1782034240000,-500.0,0.00027397,2]
[425910494,1782034240000,-816.73,0.00027397,2]
[425910497,1782034240000,-500.0,0.00027397,2]
[425910498,1782034240000,-654.57,0.00027397,2]
[425910500,1782034240000,-746.14,0.00027397,2]
[425910502,1782034240000,-500.0,0.00027397,2]
[425910503,1782034240000,-500.0,0.00027397,2]
[425910501,1782034240000,-825.3,0.00027397,2]
[425910504,1782034240000,-519.85063571,0.00027397,2]
[425910505,1782034240000,-500.0,0.00027397,2]
[425910506,1782034240000,-537.48,0.00027397,2]
[425910507,1782034240000,-4965.63,0.00027397,2]
[425910508,1782034240000,-500.0,0.00027397,2]
[425910510,1782034240000,-173.60998279,0.00027397,2]
[425910509,1782034240000,-500.0,0.00027397,2]
[425910512,1782034240000,-960.39,0.00027397,2]
[425910511,1782034240000,-500.0,0.00027397,2]
[425910488,1782034240000,-500.0,0.00027397,2]
[425910486,1782034240000,-500.0,0.00027397,2]
[425910499,1782034240000,-500.0,0.00027397,2]
[425910483,1782034240000,-500.0,0.00027397,2]
[425910487,1782034240000,-500.0,0.00027397,2]
[425910473,1782034240000,-500.0,0.00027397,2]
[425910462,1782034240000,-500.0,0.00027397,2]
[425910472,1782034240000,-500.0,0.00027397,2]
[425910463,1782034240000,-500.0,0.00027397,2]
[425910460,1782034240000,-500.0,0.00027397,2]
[425910471,1782034240000,-865.17,0.00027397,2]
[425910466,1782034240000,-500.0,0.00027397,2]
[425910467,1782034240000,-500.0,0.00027397,2]
[425910465,1782034240000,-500.0,0.00027397,2]
[425910469,1782034240000,-500.0,0.00027397,2]
[425910470,1782034240000,-500.0,0.00027397,2]
[425910461,1782034240000,-500.0,0.00027397,2]
[425910484,1782034240000,-376.46681217,0.00027397,2]
[425910468,1782034240000,-500.0,0.00027397,2]
[425910479,1782034240000,-519.96,0.00027397,2]
[425910481,1782034240000,-500.0,0.00027397,2]
[425910485,1782034240000,-500.0,0.00027397,2]
[425910480,1782034240000,-500.0,0.00027397,2]
[425910477,1782034240000,-500.0,0.00027397,2]
[425910478,1782034240000,-517.48,0.00027397,2]
[425910475,1782034240000,-501.82455083,0.00027397,2]
[425910476,1782034240000,-500.0,0.00027397,2]
[425910474,1782034240000,-554.24,0.00027397,2]
[425910482,1782034240000,-500.0,0.00027397,2]
[425910551,1782034241000,-500.0,0.00027397,2]
[425910554,1782034241000,-500.0,0.00027397,2]
[425910550,1782034241000,-4164.65,0.00027397,2]
[425910547,1782034241000,-501.82455083,0.00027397,2]
[425910549,1782034241000,-500.0,0.00027397,2]
[425910544,1782034241000,-1005.47,0.00027397,2]
[425910552,1782034241000,-526.68,0.00027397,2]
[425910542,1782034241000,-500.0,0.00027397,2]
[425910546,1782034241000,-512.54475205,0.00027397,2]
[425910553,1782034241000,-500.0,0.00027397,2]
[425910545,1782034241000,-500.0,0.00027397,2]
[425910548,1782034241000,-500.0,0.00027397,2]
[425910564,1782034241000,-500.0,0.00027397,2]
[425910561,1782034241000,-500.0,0.00027397,2]
[425910557,1782034241000,-684.32,0.00027397,2]
[425910560,1782034241000,-1000.0,0.00027397,2]
[425910558,1782034241000,-500.0,0.00027397,2]
[425910556,1782034241000,-500.0,0.00027397,2]
[425910563,1782034241000,-500.0,0.00027397,2]
[425910559,1782034241000,-500.0,0.00027397,2]
[425910562,1782034241000,-691.29,0.00027397,2]
[425910565,1782034241000,-512.49735946,0.00027397,2]
[425910576,1782034241000,-500.0,0.00027397,2]
[425910572,1782034241000,-500.0,0.00027397,2]
[425910570,1782034241000,-500.0,0.00027397,2]
[425910555,1782034241000,-500.0,0.00027397,2]
[425910543,1782034241000,-500.0,0.00027397,2]
[425910518,1782034241000,-500.0,0.00027397,2]
[425910538,1782034241000,-500.0,0.00027397,2]
[425910516,1782034241000,-571.04,0.00027397,2]
[425910517,1782034241000,-549.6,0.00027397,2]
[425910515,1782034241000,-500.0,0.00027397,2]
[425910568,1782034241000,-500.0,0.00027397,2]
[425910514,1782034241000,-500.0,0.00027397,2]
[425910513,1782034241000,-739.28,0.00027397,2]
[425910520,1782034241000,-500.0,0.00027397,2]
[425910519,1782034241000,-500.0,0.00027397,2]
[425910522,1782034241000,-500.0,0.00027397,2]